[Event "IX Iberoamericano Championship 2023"]
[Site "Panama City"]
[Date "2023.11.28"]
[Round "4.3"]
[White "Cori, Jorge"]
[Black "Flores Quillas, Diego Saul Rodri"]
[Result "0-1"]
[ECO "E14"]
[WhiteElo "2626"]
[BlackElo "2414"]
[Annotator "TA"]
[PlyCount "120"]
[EventDate "2023.11.27"]
[EventType "swiss"]
[EventCountry "PAN"]
[SourceTitle "playchess.com"]
[Source "ChessBase"]
[SourceQuality "1"]
[TimeControl "5400+30"]

{[%evp 12,120,18,6,31,16,25,26,8,26,20,0,0,0,0,0,0,-9,0,-35,-41,-46,-43,-41,-16,-66,-71,-104,-66,-70,-77,-65,20,0,7,15,7,-240,-243,-254,-243,-227,-211,-223,-152,-145,-154,-137,-88,-87,-47,-45,0,0,0,-140,-147,-121,-110,-147,-130,-184,-184,-233,-137,-132,-124,-115,-93,-138,-141,-224,-217,-270,-256,-261,-272,-264,-272,-253,-185,-464,-273,-273,-273,-273,-273,-273,-273,-273,-114,-273,-273,-603,-365,-683,-273,-11307,-11363,-10078,-4702,-9173,-6111,-6075,-5089,-29936,-12851,-6207,-6177,-5615,-5579]} 1. d4 {[%emt 0:02:16]} Nf6 {[%emt 0:14:52]} 2. Nf3 {[%emt 0:00:06]} e6 {[%emt 0:00:04]} 3. e3 {[%emt 0:00:06]} c5 {[%emt 0:01:03]} 4. Bd3 {[%emt 0:00:32]} b6 {[%emt 0:01:45]} 5. O-O {[%emt 0:00:31]} Bb7 {[%emt 0:00:04]} 6. c4 {[%emt 0:00:13]} Be7 {[%emt 0:04:17]} 7. Nc3 {[%emt 0:00:08]} h6 {[%emt 0:00:57] E14: Queen's Indian: Classical Variation (4 e3).} 8. Bc2 {[%emt 0:17:06]} cxd4 {[%emt 0:05:53]} 9. exd4 {[%emt 0:00:05]} d5 {[%emt 0:00:15] White has an edge.} 10. cxd5 {[%emt 0:03:01]} Nxd5 {[%emt 0:00:29] [#]} 11. Ne5 $146 {[%emt 0:12:46]} ({Predecessor:} 11. Nxd5 Bxd5 12. Ne5 O-O 13. Qg4 f5 14. Qg3 Rf6 15. Ba4 Kh7 16. h4 Bd6 17. h5 {1-0 Barseghyan,A (1849)-Grigoryan,A (1978) Yerevan Asrian Memorial 9th 2016 (4)}) 11... Nc6 $1 {[%emt 0:16:10]} 12. Qg4 {[%emt 0:06:04][%cal Oe5f7] Black must now prevent Nxf7!} Nxe5 {[%emt 0:05:00]} 13. dxe5 {[%emt 0:00:11]} Nxc3 {[%emt 0:00:21]} 14. bxc3 {[%emt 0:07:49]} Qd5 {[%emt 0:00:29]} 15. Ba4+ {[%emt 0:10:03]} (15. Qxg7 $2 O-O-O 16. f3 Bc5+ 17. Kh1 Qc4 18. Bxh6 Qh4 $19) 15... Kf8 {[%emt 0:00:11]} 16. Rd1 {[%emt 0:00:22]} Qxe5 {[%emt 0:00:09]} 17. Bf4 {[%emt 0:00:05]} Qa5 {[%emt 0:01:43]} 18. Bb3 {[%emt 0:18:36]} (18. Be3 $11) 18... h5 $15 {[%emt 0:07:13]} (18... Qxc3 19. Rac1 h5 20. Qxe6 fxe6 21. Rxc3 $16) 19. Qe2 {[%emt 0:00:28]} Qf5 {[%emt 0:05:34]} ({But not} 19... Qxc3 $6 20. Rac1 Qf6 21. Be3 $11) 20. Rd4 {[%emt 0:10:04]} h4 {[%emt 0:03:19]} 21. Rad1 {[%emt 0:01:04]} h3 {[%emt 0:02:21]} (21... Qg6 $15 22. f3 h3) 22. Bc2 {[%emt 0:01:21][%mdl 1024] White has compensation.} Qh5 $40 {[%emt 0:05:42][%mdl 128] Black is up to no good.} (22... Qc5 $5 {[%cal Rb7g2]}) 23. g4 $1 {[%emt 0:01:09]} Qc5 {[%emt 0:02:22]} 24. Rd7 $2 {[%emt 0:02:53]} (24. Be4 $11 {and White has nothing to worry.} Bxe4 25. Qxe4) 24... Qc6 $19 {[%emt 0:01:38][%csl Gb7,Gh3][%cal Rc6g2]} 25. f3 {[%emt 0:01:40]} Qxf3 {[%emt 0:02:07]} 26. Qxf3 {[%emt 0:00:18]} Bxf3 {[%emt 0:00:02]} 27. R1d2 {[%emt 0:00:16]} Bc6 {[%emt 0:05:37]} 28. Rc7 {[%emt 0:00:25]} Bc5+ {[%emt 0:00:07]} 29. Kf1 {[%emt 0:00:27]} Bb5+ {[%emt 0:00:05]} ({Black should play} 29... Bd5 30. Bb3 Rh4) 30. Ke1 $17 {[%emt 0:00:26]} Rh4 {[%emt 0:00:08]} 31. Bd1 {[%emt 0:00:27]} Bc4 {[%emt 0:05:57]} (31... e5 $5 {[%cal Re5f4]} 32. Bg5 Rh8 $15) 32. Bg5 {[%emt 0:02:36]} Rh8 {[%emt 0:01:41]} 33. Bf3 {[%emt 0:00:01] [#]} (33. Rdd7 $11 {remains equal.} e5 34. Rxa7) 33... Bd5 $1 {[%emt 0:00:13]} 34. Bxd5 {[%emt 0:00:05]} exd5 {[%emt 0:00:04]} 35. Rxd5 {[%emt 0:00:04][%cal Oc7a7] [#]} f6 $1 {[%emt 0:00:48]} 36. Bd2 {[%emt 0:02:25]} (36. Bc1 $17 {is a better defense.}) 36... Rh4 $19 {[%emt 0:01:26]} 37. g5 {[%emt 0:00:01] [#]} (37. Rh5 $142 Rxh5 38. gxh5) 37... Re8+ {[%emt 0:00:32]} (37... Bg1 $1 $19 {[%cal Rg1h2]} 38. g6 Rg4) 38. Kd1 $17 {[%emt 0:00:01]} Re7 {[%emt 0:00:38]} 39. Rc6 {[%emt 0:02:05]} Kf7 {[%emt 0:00:16]} 40. gxf6 {[%emt 0:00:56]} gxf6 {[%emt 0:00:06] aiming for ...Bg1.} 41. Rf5 {[%emt 0:00:02]} (41. Rd3 $17) 41... Re6 $19 {[%emt 0:00:20]} 42. Rc7+ {[%emt 0:00:45]} Kg6 {[%emt 0:00:19]} 43. Rf3 {[%emt 0:00:00]} Bd6 {[%emt 0:00:26][%csl LRc7,LRh2]} 44. Rc6 {[%emt 0:00:01][%cal Od2f4]} Kf7 {[%emt 0:03:08]} 45. Bg5 {[%emt 0:00:32]} Rg4 {[%emt 0:01:05]} 46. Bxf6 {[%emt 0:00:15]} (46. Be3) 46... Rg1+ {[%emt 0:00:05]} ({Inferior is} 46... Rxf6 47. Rxf6+ Kxf6 48. Rxd6+ Ke5 49. Rd2 $19) (46... Rf4 $142 47. Rxf4 Bxf4 {[%mdl 64] Discovered Attack} 48. Rxe6 Kxe6) 47. Kc2 {[%emt 0:00:15] Hoping for Bd4+.} Rg2+ {[%emt 0:00:05]} 48. Kb3 {[%emt 0:00:05]} Rxf6 {[%emt 0:00:54]} 49. Rxf6+ {[%emt 0:00:03]} Kxf6 {[%emt 0:00:03]} 50. Rxd6+ {[%emt 0:00:05][%mdl 4096] Endgame KR-KR} Kf5 {[%emt 0:00:26]} ({Not} 50... Ke5 $2 51. Rd7 $19) (50... Kg5 $19 {has better winning chances.} 51. Rd5+ Kf4 52. Rd4+ Kg5 53. Rd5+ Kf4 54. Rd4+ Kf3 55. Rd3+ Kg4 56. Rd4+ Kh5 57. Rd5+ Kg6 58. Rd6+ Kf5 59. Rd5+ Kg6 60. Rd6+ Kf5 61. Rd5+ Kg6) 51. Rd3 $2 {[%emt 0:03:55]} (51. a4 $17) 51... Rxh2 {[%emt 0:00:06]} 52. a3 $2 {[%emt 0:00:43]} (52. Kc4) 52... Ke4 {[%emt 0:00:43]} 53. Rg3 {[%emt 0:00:01]} (53. Rd4+ Ke5 54. Rh4) 53... Rh1 $2 {[%emt 0:00:25]} (53... b5 {...a5 would be deadly.} 54. Rg5 Rh1) 54. Kb2 $2 {[%emt 0:00:02]} (54. Kc4) 54... Kf4 {[%emt 0:00:30]} 55. Rd3 {[%emt 0:00:01]} Kg4 {[%emt 0:00:17]} 56. Rd4+ {[%emt 0:00:04]} Kf3 {[%emt 0:00:04]} 57. Rd3+ {[%emt 0:00:02]} Ke2 {[%emt 0:04:11]} 58. Rd7 {[%emt 0:02:34]} Rg1 {[%emt 0:01:07] ( -> ...h2)} 59. Rh7 {[%emt 0:00:17]} Rg3 {[%emt 0:00:07]} 60. Rxa7 {[%emt 0:00:02]} Kf2 {[%emt 0:00:09] Weighted Error Value: White=0.71/Black=0.38} 0-1

[Event "IX Iberoamericano Championship 2023"]
[Site "Panama City"]
[Date "2023.11.28"]
[Round "4.4"]
[White "Hernandez Guerrero, Gilberto"]
[Black "Rodriguez Vila, Andres"]
[Result "1/2-1/2"]
[ECO "C77"]
[WhiteElo "2527"]
[BlackElo "2405"]
[Annotator "RC"]
[PlyCount "33"]
[EventDate "2023.11.27"]
[EventType "swiss"]
[EventCountry "PAN"]
[SourceTitle "playchess.com"]
[Source "ChessBase"]
[SourceQuality "1"]
[TimeControl "5400+30"]

1. e4 {[%emt 0:00:12]} e5 {[%emt 0:00:11]} 2. Nf3 {[%emt 0:00:43]} Nc6 {[%emt 0:00:05]} 3. Bb5 {[%emt 0:00:39]} a6 {[%emt 0:00:39]} 4. Ba4 {[%emt 0:00:17]} Nf6 {[%emt 0:00:17]} 5. Nc3 {[%emt 0:00:23]} Bc5 {[%emt 0:00:27]} 6. O-O {[%emt 0:09:04]} d6 {[%emt 0:00:59]} 7. d4 {[%emt 0:05:00]} exd4 {[%emt 0:00:12]} 8. Nxd4 {[%emt 0:00:33]} Bd7 {[%emt 0:09:50]} 9. Nxc6 {[%emt 0:03:31]} Bxc6 {[%emt 0:00:44]} 10. Bxc6+ {[%emt 0:02:37]} bxc6 {[%emt 0:00:02]} 11. Qf3 {[%emt 0:03:03]} Nd7 {[%emt 0:04:25]} 12. Be3 {[%emt 0:08:36]} O-O {[%emt 0:01:01]} 13. Bxc5 {[%emt 0:07:04]} Nxc5 {[%emt 0:00:14]} 14. Rfe1 {[%emt 0:01:20]} Re8 {[%emt 0:01:54]} 15. Rad1 {[%emt 0:00:58]} Qb8 {[%emt 1:17:00]} 16. b3 {[%emt 0:00:30]} Qb4 {[%emt 0:00:30]} 17. Re3 {[%emt 0:54:30]} 1/2-1/2

[Event "IX Iberoamericano Championship 2023"]
[Site "Panama City"]
[Date "2023.11.28"]
[Round "4.5"]
[White "Berdayes Ason, Dylan Isidro"]
[Black "Zambrana, Osvaldo"]
[Result "1/2-1/2"]
[ECO "D37"]
[WhiteElo "2507"]
[BlackElo "2400"]
[Annotator "RC"]
[PlyCount "111"]
[EventDate "2023.11.27"]
[EventType "swiss"]
[EventCountry "PAN"]
[SourceTitle "playchess.com"]
[Source "ChessBase"]
[SourceQuality "1"]
[TimeControl "5400+30"]

1. d4 {[%emt 0:00:03]} e6 {[%emt 0:07:06]} 2. c4 {[%emt 0:00:03]} d5 {[%emt 0:00:28]} 3. Nc3 {[%emt 0:00:03]} h6 {[%emt 0:00:06]} 4. Nf3 {[%emt 0:00:19]} Nf6 {[%emt 0:00:10]} 5. Bf4 {[%emt 0:00:06]} Bd6 {[%emt 0:00:30]} 6. Bxd6 {[%emt 0:00:03]} Qxd6 {[%emt 0:00:12]} 7. e3 {[%emt 0:00:04]} O-O {[%emt 0:01:07]} 8. c5 {[%emt 0:00:02]} Qe7 {[%emt 0:00:18]} 9. Be2 {[%emt 0:00:04]} Nbd7 {[%emt 0:00:45]} 10. O-O {[%emt 0:00:19]} c6 {[%emt 0:01:41]} 11. b4 {[%emt 0:00:02]} b6 {[%emt 0:03:33]} 12. Qc2 {[%emt 0:10:49]} a5 {[%emt 0:01:50]} 13. a3 {[%emt 0:00:46]} Bb7 {[%emt 0:07:02]} 14. e4 {[%emt 0:11:16]} dxe4 {[%emt 0:02:53]} 15. Nxe4 {[%emt 0:02:21]} Nxe4 {[%emt 0:07:37]} 16. Qxe4 {[%emt 0:00:02]} Nf6 {[%emt 0:00:16]} 17. Qc2 {[%emt 0:01:22]} Ba6 {[%emt 0:08:30]} 18. Ne5 {[%emt 0:02:30]} Bxe2 {[%emt 0:14:20]} 19. Qxe2 {[%emt 0:00:23]} Qc7 {[%emt 0:03:48]} 20. Nc4 {[%emt 0:13:38]} bxc5 {[%emt 0:05:00]} 21. bxc5 {[%emt 0:00:54]} Nd7 {[%emt 0:00:52]} 22. Rfb1 {[%emt 0:03:37]} Rfb8 {[%emt 0:00:19]} 23. g3 {[%emt 0:02:40]} a4 {[%emt 0:03:41]} 24. Qc2 {[%emt 0:16:35]} e5 {[%emt 0:04:32]} 25. dxe5 {[%emt 0:00:21]} Nxc5 {[%emt 0:00:10]} 26. Rxb8+ {[%emt 0:00:51]} Rxb8 {[%emt 0:00:03]} 27. Nd6 {[%emt 0:01:15]} Nb3 {[%emt 0:00:27]} 28. Rd1 {[%emt 0:00:42]} c5 {[%emt 0:01:09]} 29. Qc4 {[%emt 0:00:55]} Qe7 {[%emt 0:02:55]} 30. Re1 {[%emt 0:10:11]} Qe6 {[%emt 0:04:29]} 31. Qe4 {[%emt 0:05:23]} Nd4 {[%emt 0:01:07]} 32. Rc1 {[%emt 0:02:39]} Qh3 {[%emt 0:02:30]} 33. Nc4 {[%emt 0:04:32]} Rb3 {[%emt 0:02:06]} 34. Nd2 {[%emt 0:01:41]} Rb2 {[%emt 0:09:56]} 35. Rb1 {[%emt 0:00:04]} Rxb1+ {[%emt 0:00:49]} 36. Nxb1 {[%emt 0:00:19]} Qe6 {[%emt 0:00:08]} 37. Nc3 {[%emt 0:03:32]} Qb3 {[%emt 0:02:34]} 38. Qa8+ {[%emt 0:01:54]} Kh7 {[%emt 0:00:02]} 39. Nxa4 {[%emt 0:00:18]} Qxa3 {[%emt 0:02:10]} 40. Qe4+ {[%emt 0:00:03]} Kh8 {[%emt 0:02:02]} 41. Qa8+ {[%emt 0:01:20]} Kh7 {[%emt 0:00:01]} 42. Kg2 {[%emt 0:00:34]} Ne6 {[%emt 0:01:04]} 43. Qe4+ {[%emt 0:00:21]} g6 {[%emt 0:00:02]} 44. Nb6 {[%emt 0:00:56]} Qb4 {[%emt 0:00:02]} 45. Nc4 {[%emt 0:01:29]} Kg7 {[%emt 0:00:55]} 46. h4 {[%emt 0:00:27]} h5 {[%emt 0:00:11]} 47. Qd5 {[%emt 0:01:06]} Nc7 {[%emt 0:00:12]} 48. Qd3 {[%emt 0:00:36]} Qb7+ {[%emt 0:00:19]} 49. Qf3 {[%emt 0:00:50]} Qd5 {[%emt 0:01:08]} 50. Qxd5 {[%emt 0:00:47]} Nxd5 {[%emt 0:00:01]} 51. Kf3 {[%emt 0:04:53]} f6 {[%emt 0:01:23]} 52. Ke4 {[%emt 0:00:00]} Nc3+ {[%emt 0:00:10]} 53. Kd3 {[%emt 0:00:00]} Nd5 {[%emt 0:00:18]} 54. f4 {[%emt 0:00:18]} fxe5 {[%emt 0:00:10]} 55. Nxe5 {[%emt 0:00:16]} Ne7 {[%emt 0:00:12]} 56. g4 {[%emt 0:00:46]} 1/2-1/2

[Event "IX Iberoamericano Championship 2023"]
[Site "Panama City"]
[Date "2023.11.28"]
[Round "4.6"]
[White "Ordaz Valdes, Lisandra Teresa"]
[Black "Cuenca Jimenez, Jose Fernando"]
[Result "0-1"]
[ECO "E71"]
[WhiteElo "2306"]
[BlackElo "2505"]
[Annotator "RC"]
[PlyCount "92"]
[EventDate "2023.11.27"]
[EventType "swiss"]
[EventCountry "PAN"]
[SourceTitle "playchess.com"]
[Source "ChessBase"]
[SourceQuality "1"]
[TimeControl "5400+30"]

1. d4 {[%emt 0:00:06]} Nf6 {[%emt 0:00:21]} 2. c4 {[%emt 0:00:06]} g6 {[%emt 0:00:09]} 3. Nc3 {[%emt 0:00:05]} Bg7 {[%emt 0:00:05]} 4. e4 {[%emt 0:00:30]} d6 {[%emt 0:00:30]} 5. h3 {[%emt 0:00:00]} Nbd7 {[%emt 0:02:02]} 6. Bd3 {[%emt 0:00:16]} e5 {[%emt 0:00:30]} 7. d5 {[%emt 0:00:30]} a5 {[%emt 0:00:30]} 8. g4 {[%emt 0:05:49]} Nc5 {[%emt 0:14:11]} 9. Bc2 {[%emt 0:00:05]} h5 {[%emt 0:01:11]} 10. g5 {[%emt 0:04:13]} Nh7 {[%emt 0:01:12]} 11. Nf3 {[%emt 0:03:33]} f6 {[%emt 0:30:30]} 12. Nh4 {[%emt 0:13:54]} Nf8 {[%emt 0:01:16]} 13. Nf3 {[%emt 0:05:14]} Qe7 {[%emt 0:14:32]} 14. Be3 {[%emt 0:04:21]} Nh7 {[%emt 0:02:25]} 15. Qd2 {[%emt 0:12:54]} fxg5 {[%emt 0:04:34]} 16. Nxg5 {[%emt 0:00:10]} Bh6 {[%emt 0:01:46]} 17. h4 {[%emt 0:00:15]} Bg4 {[%emt 0:02:37]} 18. Rg1 {[%emt 0:04:43]} Bxg5 {[%emt 0:01:59]} 19. hxg5 {[%emt 0:00:09]} O-O {[%emt 0:00:37]} 20. Bd1 {[%emt 0:06:13]} Bxd1 {[%emt 0:02:22]} 21. Qxd1 {[%emt 0:02:36]} Rf7 {[%emt 0:02:07]} 22. Qe2 {[%emt 0:01:25]} Na6 {[%emt 0:02:09]} 23. O-O-O {[%emt 0:01:14]} Nf8 {[%emt 0:00:13]} 24. f3 {[%emt 0:09:50]} Nd7 {[%emt 0:00:14]} 25. Rgf1 {[%emt 0:00:23]} Raf8 {[%emt 0:00:58]} 26. Qg2 {[%emt 0:01:28]} Ndc5 {[%emt 0:00:16]} 27. Kb1 {[%emt 0:00:09]} Nd7 {[%emt 0:04:26]} 28. Nb5 {[%emt 0:02:42]} Ndc5 {[%emt 0:02:03]} 29. Nc3 {[%emt 0:00:54]} Nd7 {[%emt 0:04:42]} 30. Nb5 {[%emt 0:00:08]} Qd8 {[%emt 0:00:31]} 31. Bd2 {[%emt 0:03:16]} b6 {[%emt 0:00:29]} 32. Be3 {[%emt 0:01:34]} Ndc5 {[%emt 0:00:44]} 33. Rf2 {[%emt 0:06:01]} a4 {[%emt 0:01:33]} 34. Nc3 {[%emt 0:01:40]} Qd7 {[%emt 0:00:18]} 35. Nb5 {[%emt 0:01:09]} Nb7 {[%emt 0:00:09]} 36. Qf1 {[%emt 0:01:27]} Nbc5 {[%emt 0:00:47]} 37. Rdd2 {[%emt 0:02:13]} Nb4 {[%emt 0:00:45]} 38. Nc3 {[%emt 0:02:42]} Ncd3 {[%emt 0:01:20]} 39. Rxd3 {[%emt 0:00:46]} Nxd3 {[%emt 0:00:01]} 40. Qxd3 {[%emt 0:00:02]} Rxf3 {[%emt 0:00:01]} 41. Rxf3 {[%emt 0:00:52]} Rxf3 {[%emt 0:00:01]} 42. Qe2 {[%emt 0:00:01]} Qh3 {[%emt 0:00:30]} 43. Bc1 {[%emt 0:00:59]} Qf1 {[%emt 0:00:30]} 44. Qc2 {[%emt 0:00:30]} h4 {[%emt 0:00:30]} 45. Qxa4 {[%emt 0:00:30]} h3 {[%emt 0:00:30]} 46. Qe8+ {[%emt 0:00:30]} Kh7 {[%emt 0:00:30]} 0-1

[Event "IX Iberoamericano Championship 2023"]
[Site "Panama City"]
[Date "2023.11.28"]
[Round "4.7"]
[White "Miranda Mesa, Elier"]
[Black "Esmeraldas Huachi, Anderson"]
[Result "1-0"]
[ECO "B23"]
[WhiteElo "2490"]
[BlackElo "2120"]
[Annotator "RC"]
[PlyCount "37"]
[EventDate "2023.11.27"]
[EventType "swiss"]
[EventCountry "PAN"]
[SourceTitle "playchess.com"]
[Source "ChessBase"]
[SourceQuality "1"]
[TimeControl "5400+30"]

1. e4 {[%emt 0:00:07]} c5 {[%emt 0:00:08]} 2. Nc3 {[%emt 0:00:22]} Nc6 {[%emt 0:00:58]} 3. Bb5 {[%emt 0:00:06]} Nd4 {[%emt 0:00:05]} 4. Bc4 {[%emt 0:00:03]} e6 {[%emt 0:03:35]} 5. Nge2 {[%emt 0:00:49]} Nf6 {[%emt 0:00:16]} 6. O-O {[%emt 0:00:19]} d5 {[%emt 0:04:03]} 7. exd5 {[%emt 0:00:26]} exd5 {[%emt 0:00:02]} 8. Nxd5 {[%emt 0:00:28]} Nxd5 {[%emt 0:01:30]} 9. Nxd4 {[%emt 0:00:10]} cxd4 {[%emt 0:00:41]} 10. Qh5 {[%emt 0:00:30]} Be6 {[%emt 0:02:10]} 11. Re1 {[%emt 0:00:20]} Be7 {[%emt 0:27:24]} 12. Rxe6 {[%emt 0:01:16]} Nf6 {[%emt 0:07:11]} 13. Rxf6 {[%emt 0:13:51]} gxf6 {[%emt 0:00:17]} 14. Bb5+ {[%emt 0:01:15]} Kf8 {[%emt 0:00:21]} 15. d3 {[%emt 0:00:07]} Bb4 {[%emt 0:06:09]} 16. Bh6+ {[%emt 0:05:30]} Ke7 {[%emt 0:00:12]} 17. c3 {[%emt 0:00:30]} Qc7 {[%emt 0:07:06]} 18. Re1+ {[%emt 0:02:31]} Kd8 {[%emt 0:00:20]} 19. cxb4 {[%emt 0:00:07]} 1-0

[Event "IX Iberoamericano Championship 2023"]
[Site "Panama City"]
[Date "2023.11.28"]
[Round "4.8"]
[White "Matamoros Franco, Carlos S."]
[Black "Ynojosa Aponte, Felix Jose"]
[Result "1/2-1/2"]
[ECO "B14"]
[WhiteElo "2455"]
[BlackElo "2393"]
[Annotator "RC"]
[PlyCount "85"]
[EventDate "2023.11.27"]
[EventType "swiss"]
[EventCountry "PAN"]
[SourceTitle "playchess.com"]
[Source "ChessBase"]
[SourceQuality "1"]
[TimeControl "5400+30"]

1. Nf3 {[%emt 0:00:05]} c5 {[%emt 0:03:22]} 2. c4 {[%emt 0:00:15]} b6 {[%emt 0:00:03]} 3. Nc3 {[%emt 0:00:51]} Bb7 {[%emt 0:00:10]} 4. e3 {[%emt 0:00:13]} Nf6 {[%emt 0:00:16]} 5. d4 {[%emt 0:00:18]} cxd4 {[%emt 0:00:03]} 6. exd4 {[%emt 0:00:05]} e6 {[%emt 0:00:02]} 7. a3 {[%emt 0:04:47]} d5 {[%emt 0:00:09]} 8. Bd3 {[%emt 0:26:37]} Be7 {[%emt 0:01:07]} 9. O-O {[%emt 0:00:15]} O-O {[%emt 0:00:30]} 10. Re1 {[%emt 0:02:30]} Nc6 {[%emt 0:02:35]} 11. Bg5 {[%emt 0:11:46]} h6 {[%emt 0:01:33]} 12. Be3 {[%emt 0:10:23]} Rc8 {[%emt 0:00:14]} 13. cxd5 {[%emt 0:01:40]} Nxd5 {[%emt 0:00:08]} 14. Bc2 {[%emt 0:00:04]} Nxc3 {[%emt 0:09:18]} 15. Qd3 {[%emt 0:06:26]} f5 {[%emt 0:00:04]} 16. bxc3 {[%emt 0:00:05]} Na5 {[%emt 0:00:02]} 17. Bxh6 {[%emt 0:13:44]} gxh6 {[%emt 0:02:56]} 18. Rxe6 {[%emt 0:00:05]} Rc6 {[%emt 0:06:50]} 19. Rae1 {[%emt 0:01:54]} Rxe6 {[%emt 0:01:31]} 20. Rxe6 {[%emt 0:00:03]} Be4 {[%emt 0:18:08]} 21. Rxe4 {[%emt 0:15:44]} fxe4 {[%emt 0:00:15]} 22. Qxe4 {[%emt 0:00:01]} Rf7 {[%emt 0:00:07]} 23. Qg6+ {[%emt 0:01:50]} Rg7 {[%emt 0:00:29]} 24. Qe6+ {[%emt 0:00:05]} Kf8 {[%emt 0:00:03]} 25. Ne5 {[%emt 0:03:14]} Qd6 {[%emt 0:00:51]} 26. Qc8+ {[%emt 0:00:00]} Bd8 {[%emt 0:00:39]} 27. Qf5+ {[%emt 0:00:00]} Kg8 {[%emt 0:02:15]} 28. Be4 {[%emt 0:00:00]} b5 {[%emt 0:11:40]} 29. g3 {[%emt 0:00:49]} Nc4 {[%emt 0:01:22]} 30. Ng4 {[%emt 0:00:21]} Nb6 {[%emt 0:04:31]} 31. Qh5 {[%emt 0:00:09]} Rxg4 {[%emt 0:07:27]} 32. Qxg4+ {[%emt 0:00:03]} Kf8 {[%emt 0:00:04]} 33. Qf5+ {[%emt 0:00:27]} Bf6 {[%emt 0:00:41]} 34. Qg6 {[%emt 0:00:57]} h5 {[%emt 0:02:29]} 35. Qh6+ {[%emt 0:01:28]} Ke7 {[%emt 0:01:24]} 36. Qh7+ {[%emt 0:00:10]} Kd8 {[%emt 0:00:49]} 37. Qxa7 {[%emt 0:00:11]} Na4 {[%emt 0:03:31]} 38. Qa8+ {[%emt 0:00:17]} Ke7 {[%emt 0:01:21]} 39. Bg6 {[%emt 0:00:20]} Qd7 {[%emt 0:01:29]} 40. Qg8 {[%emt 0:00:45]} Kd6 {[%emt 0:01:31]} 41. Qb8+ {[%emt 0:02:03]} Ke7 {[%emt 0:01:27]} 42. Qg8 {[%emt 0:00:00]} Kd6 {[%emt 0:00:05]} 43. Qb8+ {[%emt 0:00:00]} 1/2-1/2

[Event "IX Iberoamericano Championship 2023"]
[Site "Panama City"]
[Date "2023.11.28"]
[Round "4.9"]
[White "Ortiz Verdezoto, Anahi"]
[Black "De La Riva Aguado, Oscar"]
[Result "1/2-1/2"]
[ECO "A86"]
[WhiteElo "2175"]
[BlackElo "2437"]
[Annotator "RC"]
[PlyCount "48"]
[EventDate "2023.11.27"]
[EventType "swiss"]
[EventCountry "PAN"]
[SourceTitle "playchess.com"]
[Source "ChessBase"]
[SourceQuality "1"]
[TimeControl "5400+30"]

1. d4 {[%emt 0:00:13]} f5 {[%emt 0:00:50]} 2. c4 {[%emt 0:00:26]} Nf6 {[%emt 0:00:14]} 3. g3 {[%emt 0:00:30]} g6 {[%emt 0:00:42]} 4. Bg2 {[%emt 0:00:27]} Bg7 {[%emt 0:00:08]} 5. Nh3 {[%emt 0:00:12]} Nc6 {[%emt 0:05:41]} 6. d5 {[%emt 0:05:32]} Ne5 {[%emt 0:00:08]} 7. Qc2 {[%emt 0:00:09]} c6 {[%emt 0:03:35]} 8. O-O {[%emt 0:06:03]} O-O {[%emt 0:01:20]} 9. Nf4 {[%emt 0:08:18]} Nf7 {[%emt 0:10:58]} 10. Rd1 {[%emt 0:05:39]} Qc7 {[%emt 0:00:50]} 11. Nc3 {[%emt 0:02:02]} e5 {[%emt 0:00:39]} 12. dxe6 {[%emt 0:13:18]} dxe6 {[%emt 0:00:10]} 13. b4 {[%emt 0:04:36]} e5 {[%emt 0:02:02]} 14. Nd3 {[%emt 0:01:35]} e4 {[%emt 0:04:23]} 15. Nc5 {[%emt 0:04:28]} Qe7 {[%emt 0:00:46]} 16. a3 {[%emt 0:12:26]} Ng4 {[%emt 0:08:22]} 17. h3 {[%emt 0:04:12]} Nge5 {[%emt 0:00:12]} 18. Rb1 {[%emt 0:00:23]} Nd6 {[%emt 0:15:03]} 19. b5 {[%emt 0:07:52]} Ndxc4 {[%emt 0:06:50]} 20. bxc6 {[%emt 0:02:05]} bxc6 {[%emt 0:03:40]} 21. N3a4 {[%emt 0:00:30]} Kh8 {[%emt 0:00:34]} 22. Rb4 {[%emt 0:00:44]} Qf7 {[%emt 0:02:00]} 23. f4 {[%emt 0:03:46]} exf3 {[%emt 0:04:06]} 24. exf3 {[%emt 0:00:07]} Nb6 {[%emt 0:13:44]} 1/2-1/2

[Event "IX Iberoamericano Championship 2023"]
[Site "Panama City"]
[Date "2023.11.28"]
[Round "4.10"]
[White "Ibanez Zanetti, Sebastian Andres"]
[Black "Chinchilla, Alejandro Jose"]
[Result "0-1"]
[ECO "B00"]
[WhiteElo "1462"]
[BlackElo "2127"]
[Annotator "RC"]
[PlyCount "30"]
[EventDate "2023.11.27"]
[EventType "swiss"]
[EventCountry "PAN"]
[SourceTitle "playchess.com"]
[Source "ChessBase"]
[SourceQuality "1"]
[TimeControl "5400+30"]

1. e4 {[%emt 0:00:09]} Nc6 {[%emt 0:00:14]} 2. Nf3 {[%emt 0:02:37]} d5 {[%emt 0:00:33]} 3. exd5 {[%emt 0:00:11]} Qxd5 {[%emt 0:00:09]} 4. Nc3 {[%emt 0:01:44]} Qd6 {[%emt 0:00:08]} 5. d4 {[%emt 0:06:26]} Nf6 {[%emt 0:00:17]} 6. h3 {[%emt 0:06:46]} a6 {[%emt 0:02:34]} 7. Be2 {[%emt 0:02:38]} Bf5 {[%emt 0:01:10]} 8. d5 {[%emt 0:02:15]} Nb4 {[%emt 0:05:56]} 9. Nd4 {[%emt 0:05:53]} Bg6 {[%emt 0:10:02]} 10. Bf3 {[%emt 0:09:53]} e5 {[%emt 0:11:30]} 11. dxe6 {[%emt 0:00:49]} Qxd4 {[%emt 0:03:45]} 12. exf7+ {[%emt 0:01:36]} Kxf7 {[%emt 0:02:23]} 13. Qxd4 {[%emt 0:00:09]} Nxc2+ {[%emt 0:00:06]} 14. Kd2 {[%emt 0:00:26]} Nxd4 {[%emt 0:00:12]} 15. Bxb7 {[%emt 0:00:57]} Rd8 {[%emt 0:01:32]} 0-1